Cogmind - Beta 15 @@@ ROGUE MODE // 2025.05.13 @ 16:06:53 Player: actioninja Result: Self-destructed Performance ------------- Evolutions (2) 1000 Regions Visited (5) 1000 Robots Destroyed (23) 115 Value Destroyed (379) 379 Prototype IDs (0) 0 Alien Tech Used (0) 0 Bonus (21) 21 TOTAL SCORE: 2515 Bonus ------- Follower Combat Kills 21 Cogmind --------- Core Integrity 550/550 Matter 270/300 Energy 125/125 System Corruption 0% Temperature Cool (0) Movement Treading (160) Location -8/Materials Parts ------- > --- POWER (1) -------- Light Ion Engine > --- PROPULSION (2) --- Light Treads Light Treads > --- UTILITY (6) ------ Small Storage Unit Improved Targeting Computer > --- WEAPON (2) ------- Heavy Assault Rifle Autogun > --- INVENTORY (8) ---- Ion Engine Ion Engine Wheel Sensor Array Improved Terrain Scanner Seismic Detector Particle Gun Rocket Launcher Peak State ------------ > --- POWER ------------ Light Ion Engine > --- PROPULSION ------- Light Treads Light Treads > --- UTILITY ---------- Small Storage Unit Improved Terrain Scanner > --- WEAPON ----------- Particle Gun Autogun > --- INVENTORY -------- Ion Engine Ion Engine Wheel Sensor Array Makeshift Terrain Scan Processor Seismic Detector Light Assault Rifle Grenade Launcher [Rating: 12] Favorites ----------- Power Light Ion Engine Engine Light Ion Engine Propulsion Light Treads Treads Light Treads Utility Small Storage Unit Device Improved Terrain Scanner Storage Small Storage Unit Processor Improved Targeting Computer Weapon Light Assault Rifle Energy Gun Particle Gun Ballistic Gun Light Assault Rifle Build | -11 -10 -10 -10 -9 -8 ------- Run | Yrd Mat Min Exi Min Mat Slots Evolved 4 | . . . . . 4 Power . | . . . . . . Propulsion . | . . . . . . Utility 4 | . . . . . 4 Weapon . | . . . . . . Parts Attached 14 | 8 1 2 . 3 . Power 3 | 1 1 1 . . . Engine 3 | 1 1 1 . . . Core . | . . . . . . Reactor . | . . . . . . Propulsion 2 | 2 . . . . . Treads 2 | 2 . . . . . Leg . | . . . . . . Wheel . | . . . . . . Hover . | . . . . . . Flight . | . . . . . . Utility 4 | 3 . . . 1 . Device 2 | 2 . . . . . Storage 1 | 1 . . . . . Processor 1 | . . . . 1 . Hackware . | . . . . . . Protection . | . . . . . . Artifact . | . . . . . . Weapon 5 | 2 . 1 . 2 . Energy Gun 2 | 1 . 1 . . . Energy Cannon . | . . . . . . Ballistic Gun 3 | 1 . . . 2 . Ballistic Cannon . | . . . . . . Launcher . | . . . . . . Special Weapon . | . . . . . . Impact Weapon . | . . . . . . Slashing Weapon . | . . . . . . Piercing Weapon . | . . . . . . Special Melee Weapon . | . . . . . . Unidentified Prototypes . | . . . . . . Parts Lost . | . . . . . . Power . | . . . . . . Propulsion . | . . . . . . Utility . | . . . . . . Weapon . | . . . . . . Highest Loss Streak . | . . . . . . To Critical Strikes . | . . . . . . Average Backups 7 | 4 7 7 7 8 . Power 2 | . 2 2 2 2 . Propulsion 1 | 1 1 1 1 1 . Utility 2 | . 2 2 2 3 . Weapon 1 | . 1 1 2 2 . Tool/Special . | . . . . . . Unused Backups 12 | . 3 1 1 3 4 Power 3 | . . . 1 . 2 Propulsion 4 | . 3 . . . 1 Utility 3 | . . 1 . 1 1 Weapon 2 | . . . . 2 . Tool/Special . | . . . . . . Average Slot Usage (%) 100 | . 100 100 100 100 . Engine 14 | . 14 14 14 14 . Treads 28 | . 28 28 28 28 . Device 13 | . 14 14 14 13 . Storage 14 | . 14 14 14 14 . Energy Gun 13 | . 14 14 14 8 . Ballistic Gun 14 | . 14 14 14 19 . Peak Build Rating 12 | 9 9 10 11 12 . Average Rating 9 | 6 9 9 10 11 . On Entrance 8 | . 9 9 10 11 11 Naked Turns . | . . . . . . Heaviest Build 15 | 12 12 13 13 15 . Greatest Support 40 | 40 40 40 40 40 . Greatest Overweight (x) . | . . . . . . Average Overweight (x) . | . . . . . . Largest Inventory Capacity 8 | 8 8 8 8 8 . Average Capacity 7 | 7 8 8 8 8 . Most Carried 8 | 6 8 8 8 8 . Average Carried 7 | 4 7 7 7 7 . Final Capacity 8 | 8 8 8 8 8 8 Final Carried 8 | 6 8 7 8 8 8 Class Distribution -------------------- 58% | Mutant 41% | Commander-Mutant Dominant Class ---------------- Mutant | -10/Materials Mutant | -10/Mines Commander-Mutant | -10/Exiles Commander-Mutant | -9/Mines Commander-Mutant | -8/Materials Resources | -11 -10 -10 -10 -9 -8 ----------- Run | Yrd Mat Min Exi Min Mat Matter Collected 359 | 287 43 29 . . . Remotely . | . . . . . . Salvage Created 602 | 107 359 136 . . . Parts 47 | 7 27 13 . . . Haulers Intercepted . | . . . . . . Recyclers Shooed 2 | 1 1 . . . . Parts Field Recycled . | . . . . . . Retrieved Matter . | . . . . . . Parts Self-Destructed . | . . . . . . Prevented . | . . . . . . Kills | -11 -10 -10 -10 -9 -8 ------- Run | Yrd Mat Min Exi Min Mat Combat Hostiles Destroyed 18 | . 13 5 . . . Guns 18 | . 13 5 . . . Classes Destroyed 5 | 2 3 . . . . Tunneler 2 | 2 . . . . . Recycler 2 | 1 1 . . . . Watcher 1 | . 1 . . . . Swarmer 12 | . 9 3 . . . Grunt 6 | . 4 2 . . . Best Kill Streak 5 | 2 5 3 . . . Combat Bots Only 3 | . 3 3 . . . Max Kills in Single Turn 2 | 1 2 1 . . . Gunslinging 1 | . 1 . . . . Exploded . | . . . . . . Melee . | . . . . . . Uniques/NPCs Destroyed . | . . . . . . Combat | -11 -10 -10 -10 -9 -8 -------- Run | Yrd Mat Min Exi Min Mat Hostile Shots Fired 87 | . 59 28 . . . Missed 31 | . 21 10 . . . Hits 56 | . 38 18 . . . Projectile 56 | . 38 18 . . . Damage Taken 504 | . 331 173 . . . Core 120 | . 91 29 . . . Absorbed by Shields . | . . . . . . Core Remaining (%) 76 | 100 . . . 52 . Volleys Fired 51 | 7 33 11 . . . Largest 2 | 2 2 2 . . . Hottest 85 | 70 70 85 . . . Shots Fired 102 | 14 66 22 . . . Gun 102 | 14 66 22 . . . Cannon . | . . . . . . Launcher . | . . . . . . Special . | . . . . . . Kinetic 51 | 7 33 11 . . . Thermal 51 | 7 33 11 . . . Explosive . | . . . . . . Electromagnetic . | . . . . . . Robot Hit Streak 10 | 5 10 4 . . . Robot Miss Streak 3 | 1 3 3 . . . Penetration Max . | . . . . . . Secondary Targets 4 | . 3 1 . . . Max Gunslinging Chain 1 | . 1 1 . . . Shots Hit Robots 62 | 9 41 12 . . . Core Hits 37 | 6 22 9 . . . Critical Kills . | . . . . . . Critical Parts Destroyed . | . . . . . . Critical Strikes 7 | 2 4 1 . . . Burn 7 | 2 4 1 . . . Melee Attacks . | . . . . . . Impact . | . . . . . . Slashing . | . . . . . . Piercing . | . . . . . . Sneak Attacks . | . . . . . . Combat Hostiles . | . . . . . . Follow-up Attacks . | . . . . . . Damage Inflicted 699 | 93 455 151 . . . Guns 698 | 93 455 150 . . . Cannons . | . . . . . . Explosions . | . . . . . . Melee . | . . . . . . Ramming 1 | . . 1 . . . Kinetic 225 | 30 155 40 . . . Thermal 473 | 63 300 110 . . . Explosive . | . . . . . . Electromagnetic . | . . . . . . Impact . | . . . . . . Slashing . | . . . . . . Piercing . | . . . . . . Highest Corruption . | . . . . . . Average Corruption . | . . . . . . Corruption Purged . | . . . . . . Corruption Blocked . | . . . . . . Overload Shots . | . . . . . . Overflow Damage . | . . . . . . Projectiles . | . . . . . . Explosions . | . . . . . . Melee . | . . . . . . Knockbacks . | . . . . . . Impact . | . . . . . . Kinetic . | . . . . . . Secondary . | . . . . . . Self-Inflicted Damage . | . . . . . . Shots . | . . . . . . Rammed 2 | . . 2 . . . Targets Rammed 2 | . . 2 . . . Kicked . | . . . . . . Crushed . | . . . . . . Highest Temperature 136 | 70 118 136 . . . Average Temperature 47 | 34 44 62 . . . Received Heat Transfer 66 | . 42 24 . . . Siege Activations . | . . . . . . Martial Activations . | . . . . . . Shielding Activations . | . . . . . . Robots Disrupted . | . . . . . . Combat Hostiles . | . . . . . . Robots Corrupted . | . . . . . . Combat Hostiles . | . . . . . . Parts Fried . | . . . . . . Impact Corruptions . | . . . . . . Robots Melted . | . . . . . . Combat Hostiles . | . . . . . . Parts Melted 6 | 2 4 . . . . Heat Transferred 1887 | 333 1184 370 . . . Parts Sabotaged . | . . . . . . Parts Stolen . | . . . . . . Parts Stripped . | . . . . . . Power Chain Reactions . | . . . . . . Alert | -11 -10 -10 -10 -9 -8 ------- Run | Yrd Mat Min Exi Min Mat Maximum Alert Level . | . . . . . . Low Security (%) 100 | 100 100 100 . 100 . Level 1 . | . . . . . . Level 2 . | . . . . . . Level 3 . | . . . . . . Level 4 . | . . . . . . Level 5 . | . . . . . . High Security . | . . . . . . Max Security . | . . . . . . Peak Influence 157 | 5 157 81 . . . Initial 34 | . . 34 . . . Average 32 | . 78 16 . . . Influence Increases 538 | 15 322 201 . . . Destroy 0b10 Robot/C 420 | . 260 160 . . . Destroy 0b10 Robot/NC 25 | 15 10 . . . . Destroy Leader 82 | . 52 30 . . . Allied During Kill 11 | . . 11 . . . Influence Decreases 538 | 15 234 224 65 . . Entered New Map 119 | . . 54 65 . . Time Decay 419 | 15 234 170 . . . Squads Dispatched 2 | . 2 . . . . Investigation 1 | . 1 . . . . Extermination . | . . . . . . Reinforcement 1 | . 1 . . . . Assault . | . . . . . . Garrison . | . . . . . . Intercept . | . . . . . . Searches Triggered . | . . . . . . Construction Impeded . | . . . . . . Haulers Reinforced . | . . . . . . Active Scanning Responses . | . . . . . . Cargo Convoy Interrupts . | . . . . . . Stealth | -11 -10 -10 -10 -9 -8 --------- Run | Yrd Mat Min Exi Min Mat Distress Signals 1 | . 1 . . . . Communications Jammed . | . . . . . . Distress Signals . | . . . . . . Times Spotted 24 | . 16 8 . . . Peak Tracking Total 4 | . 4 3 . . . Tactical Retreats . | . . . . . . Traps | -11 -10 -10 -10 -9 -8 ------- Run | Yrd Mat Min Exi Min Mat Traps Triggered 1 | . 1 . . . . Indirectly . | . . . . . . Trap Hack Attempts . | . . . . . . Triggered . | . . . . . . Disarmed . | . . . . . . Reprogrammed . | . . . . . . Reused . | . . . . . . Traps Extracted . | . . . . . . Installed . | . . . . . . Triggered . | . . . . . . Machines | -11 -10 -10 -10 -9 -8 ---------- Run | Yrd Mat Min Exi Min Mat Machines Disabled . | . . . . . . Max in Single Turn . | . . . . . . Machines Repaired . | . . . . . . Machines Dismantled . | . . . . . . Machines Sabotaged . | . . . . . . Overloaded Fab Kills . | . . . . . . Hacking | -11 -10 -10 -10 -9 -8 --------- Run | Yrd Mat Min Exi Min Mat Machines Accessed 2 | . . . 2 . . Terminals . | . . . . . . Fabricators . | . . . . . . Repair Stations . | . . . . . . Recycling Units . | . . . . . . Scanalyzers . | . . . . . . Garrison Access . | . . . . . . Total Hacks 6 | . . . 6 . . Successful 6 | . . . 6 . . Failed . | . . . . . . Catastrophic . | . . . . . . Database Lockouts . | . . . . . . Manual . | . . . . . . Terminals . | . . . . . . Fabricators . | . . . . . . Repair Stations . | . . . . . . Recycling Units . | . . . . . . Scanalyzers . | . . . . . . Garrison Access . | . . . . . . Terminal Hacks 6 | . . . 6 . . Record 6 | . . . 6 . . Fabricator Hacks . | . . . . . . Repair Station Hacks . | . . . . . . Recycling Unit Hacks . | . . . . . . Scanalyzer . | . . . . . . Garrison Access Hacks . | . . . . . . Unauthorized Hacks . | . . . . . . Terminals . | . . . . . . Fabricators . | . . . . . . Repair Stations . | . . . . . . Recycling Units . | . . . . . . Scanalyzers . | . . . . . . Garrison Access . | . . . . . . Data Cores Recovered . | . . . . . . Used . | . . . . . . Hacking Detections . | . . . . . . Full Trace Events . | . . . . . . Feedback Events . | . . . . . . Feedback Blocked . | . . . . . . Robot Schematics Acquired . | . . . . . . Robots Built . | . . . . . . Authchips . | . . . . . . Time . | . . . . . . Total Robot Build Rating . | . . . . . . Part Schematics Acquired . | . . . . . . Parts Built . | . . . . . . Authchips . | . . . . . . Time . | . . . . . . Total Part Build Rating . | . . . . . . Parts Repaired . | . . . . . . Time . | . . . . . . Parts Recycled . | . . . . . . Recycled Matter . | . . . . . . Retrieved Matter . | . . . . . . Retrieved Components . | . . . . . . Parts Scanalyzed . | . . . . . . Part Schematics Acquired . | . . . . . . Parts Damaged . | . . . . . . Bothacking | -11 -10 -10 -10 -9 -8 ------------ Run | Yrd Mat Min Exi Min Mat Used RIF Installer . | . . . . . . Robots Hacked . | . . . . . . Non-combat . | . . . . . . Combat . | . . . . . . Robot Hacks Applied . | . . . . . . Relay Couplers Released . | . . . . . . Fabnet Peak Effective % . | . . . . . . Robots Rewired 4 | . . . 4 . . Allies Hacked . | . . . . . . Hacks Repelled . | . . . . . . Allies | -11 -10 -10 -10 -9 -8 -------- Run | Yrd Mat Min Exi Min Mat Total Allies 7 | . . 3 4 . . Largest Group 7 | . . 3 7 7 . Highest-Rated Group 85 | . . 40 85 85 . Highest-Rated Ally 21 | . . 16 21 21 . Total Orders . | . . . . . . Ally Attacks 17 | . . 15 . 2 . Total Damage 122 | . . 105 . 17 . Kills 3 | . . 3 . . . Allies Corrupted . | . . . . . . Allies Melted . | . . . . . . Intel | -11 -10 -10 -10 -9 -8 ------- Run | Yrd Mat Min Exi Min Mat Active Infowar (turns) 2723 | 122 543 746 1140 172 . Terrain 2695 | 94 543 746 1140 172 . Seismic 28 | 28 . . . . . Robot Analysis Total . | . . . . . . Derelict Logs Recovered 3 | . . 1 . 2 . Drone Launches . | . . . . . . Drone Recoveries . | . . . . . . Exploration | -11 -10 -10 -10 -9 -8 ------------- Run | Yrd Mat Min Exi Min Mat Turns Passed 2840 | 229 543 746 1140 182 . Spaces Moved 1603 | 122 268 440 663 110 . Core 8 | 8 . . . . . Treads 1595 | 114 268 440 663 110 . Legs . | . . . . . . Wheels . | . . . . . . Hover . | . . . . . . Flight . | . . . . . . Fastest Speed 50 | 50 160 160 160 160 . Average Speed 159 | 152 160 160 160 160 . Slowest Speed 160 | 160 160 160 160 160 . Overloaded Moves . | . . . . . . Propulsion Burnouts . | . . . . . . Robots Hopped . | . . . . . . Potential Cave-ins . | . . . . . . Cave-ins Triggered . | . . . . . . Exploration Rate (%) 32 | 9 26 47 90 22 1 Regions Visited 5 Branch Regions 3 Pre-discovered Areas 2 | . . . 1 1 . Known Exits Taken 1 | . . . 1 . . Unknown Exits Taken 4 | 1 1 1 . 1 . Scrap Searched . | . . . . . . Spaces Dug . | . . . . . . Terrain Destroyed . | . . . . . . Melee . | . . . . . . Projectile . | . . . . . . AOE . | . . . . . . Terrain Rammed . | . . . . . . Walls Destroyed . | . . . . . . Machines Disabled . | . . . . . . Actions | -11 -10 -10 -10 -9 -8 --------- Run | Yrd Mat Min Exi Min Mat Total 1800 | 152 324 462 743 119 . Wait 21 | 3 13 4 1 . . Move 1598 | 121 267 439 662 109 . Hop . | . . . . . . Pick Up 25 | 13 6 1 2 3 . Fast Attach . | . . . . . . Attach 7 | 7 . . . . . Detach . | . . . . . . Swap 7 | 1 1 2 . 3 . Drop 12 | . 4 3 1 4 . Fire 51 | 7 33 11 . . . Melee . | . . . . . . Ram . | . . . . . . Kick . | . . . . . . Crush 2 | . . 2 . . . Escape Stasis . | . . . . . . Rewire 77 | . . . 77 . . Trap . | . . . . . . Miscellaneous . | . . . . . . Route ------- -11/Scrapyard -10/Materials (discovered 2 exits: *Min x2) -10/Mines (discovered 2 exits: [*Mat] / *Exi) -10/Exiles (discovered 2 exits: *Min x2) -9/Mines -8/Materials History --------- Turn | Location | Event 31 | -11/Scrapyard | Discovered new exit (range 15) 230 | -11/Scrapyard | Entered Materials 230 | -10/Materials | Discovered new exit (range 15) 328 | -10/Materials | Build established: Mutant 518 | -10/Materials | Discovered new exit (range 10) 773 | -10/Materials | Entered Mines 790 | -10/Mines | YI-UF0 nonchalantly dropped a Grenade Launcher on the ground 1375 | -10/Mines | Assisted by bots powering up and referring to "LRC-V3" 1434 | -10/Mines | Discovered new exit (range 13) 1507 | -10/Mines | Deemed a non-threat by the Exiles lab entrance 1508 | -10/Mines | Discovered new exit (range 5) 1519 | -10/Mines | Entered Exiles 1519 | -10/Exiles | Found Exiles lab destroyed 1519 | -10/Exiles | Accompanied by 3 allies 1520 | -10/Exiles | Identified exit to Mines 1805 | -10/Exiles | Learned location of Zion (-6) 1939 | -10/Exiles | Build established: Commander-Mutant 2659 | -10/Exiles | Entered Mines 2659 | -9/Mines | Accompanied by 7 allies 2695 | -9/Mines | Learned Materials trap positions 2738 | -9/Mines | Learned location of Storage (-7) 2754 | -9/Mines | Joined a pair of Derelicts in attacking an 0b10 outpost 2821 | -9/Mines | Discovered new exit (range 8) 2825 | -9/Mines | Received a Rocket Launcher from a helpful Derelict 2841 | -9/Mines | Entered Materials 2841 | -8/Materials | Accompanied by 3 allies 2841 | -8/Materials | Evolved 4 slots: Utility x4 2841 | -8/Materials | Self-destructed Last Messages --------------- the depths." 02821_ 84-1K8(g): "Pshh... whatever." 02821_ EXIT=FOUND 02822_ 84-1K8(g): "Everyone knows a good old rocket launcher goes a long way." 02823_ 84-1K8(g): "Need to get rid of a swarm? Done. Need a big hole in the wall? Done." 02824_ 84-1K8(g): "Need a small hole in the wall? Leave that to the mining laser wimps, I say!" 02825_ 84-1K8(g): "Would you like a rocket launcher? I know I would if I were you, so I'm going to lend you mine." 02825_ 84-1K8(g) slips back into the shadows. 02831_ Dropped Grenade Launcher. 02831_ Acquired Rocket Launcher. 02839_ K-01 Serf collects debris. PARAMETERS=UTILITY+4 LOCATION=UNKNOWN GOAL=ESCAPE Map ----- +----------------------------------------------------+ | ???????????????????????????????????????? | | ???????????????????????????????????????? | | ???????????????????????????????????????? | | ???????????????????????????????????????? | | ???????????????????????????????????????? | | ???????????????????????????????????????? | | ???????????????????????????????????????? | | ???????????????????????????????????????? | | ???????????????????????????????????????? | | ???????????????????????????????????????? | | ?????????????? ??????????????????????? | | ?????????????? ??????????????????????? | | ?????????????? ??????????????????????? | | ?????????????# #?????????????????????? | | ?????????????+ #?????????????????????? | | ?????????????# #?????????????????????? | | ?????????????# #?????????????????????? | | ?????????????# #?????????????????????? | | ?????????????# #?????????????????????? | | ?????????????# #?????????????????????? | | ?????????????# #?????????????????????? | | ?????????????# #?????????????????????? | | ?????????????# #?????????????????????? | | ?????????????# g #?????????????????????? | | ?????????????# g #?????????????????????? | | ?????????????#g@ #?????????????????????? | | ?????????????# #?????????????????????? | | ?????????????#####?????????????????????? | | ???????????????????????????????????????? | | ???????????????????????????????????????? | | ???????????????????????????????????????? | | ???????????????????????????????????????? | | ???????????????????????????????????????? | | ???????????????????????????????????????? | | ???????????????????????????????????????? | | ???????????????????????????????????????? | | ???????????????????????????????????????? | | ???????????????????????????????????????? | | | | | | | | | | | | | | | | | | | | | | | | | +----------------------------------------------------+ Best States ------------- Heat Dissipation 25 Energy Generation 10 Energy Capacity 125 Matter Stores 300 Matter Capacity 300 Sight Range 16 Terrain Scan Range 16 Terrain Scan Density 10 Evasion (%) 40 Targeting Accuracy 6 Recoil Reduction 2 Item Schematics ----------------- None Robot Schematics ------------------ None Fabricated ------------ Nothing Repaired ---------- Nothing Alien Tech Used ----------------- None Achievements -------------- A New Friend The More The Merrier Challenges ------------ None Game ------ Seed CombatSwarmAirjet Manual? 0 Play Time 00:13:45 Cumulative 6.6 hours Start 2025.05.13 @ 15:52:25 End 2025.05.13 @ 16:06:53 Sessions 1 Manual Loads 0 Difficulty Rogue Special Mode None Game No. 20 Rogue 20 Adventurer 0 Explorer 0 Win Type - Total 0 Types 0/0/0/0/0/0/0/0/0/0 Lore% 16 Gallery% 14 Achievement% 13 Wizard Run 0 Options --------- Layout 1 ASCII 0 Keyboard 0 Movement Numpad Keybinds 0 Fullscreen 2 Font 32/SmallcapsGlow Map View 50x35 Zoom Use 0% Tactical HUD 1 Map Filters NONE Filters NONE Steam 1 RUN: 66cf9a19-2144-4ad7-a024-7e42a6353ee9